Date Paid,Transaction Number, Amount ,Supplier Name,Period,Expense Area,Cipfa(T),
22/09/2016,2151093,"147,313.06",Addaction,201706,Public Health,Third Party Payments,
14/09/2016,3836846,873.4,Alliance In Partnership,201706,Schools,Supplies & Services,
16/09/2016,4691882,875.25,Alliance In Partnership,201706,Schools,Supplies & Services,
28/09/2016,2151812,440.77,Almeley Primary School Imprest,201706,Schools,Supplies & Services,
21/09/2016,2150988,649,Ashfield Park Primary School,201706,Children & Young People Capital,Capital Income,
21/09/2016,2150754,458.33,Ashperton Primary Academy,201706,Central Childrens Directorate Costs,Support Services,
21/09/2016,2150820,458.33,Ashperton Primary Academy,201706,Central Childrens Directorate Costs,Support Services,
21/09/2016,2150890,458.33,Ashperton Primary Academy,201706,Central Childrens Directorate Costs,Support Services,
21/09/2016,2150891,458.33,Ashperton Primary Academy,201706,Central Childrens Directorate Costs,Support Services,
14/09/2016,2147836,"2,441.53",Aylestone School Imprest A/C,201706,Schools,Supplies & Services,
21/09/2016,2150625,458.33,BAE Trust T/A The Hereford Academy,201706,Central Childrens Directorate Costs,Support Services,
21/09/2016,2150722,458.33,BAE Trust T/A The Hereford Academy,201706,Central Childrens Directorate Costs,Support Services,
21/09/2016,2150744,458.33,BAE Trust T/A The Hereford Academy,201706,Central Childrens Directorate Costs,Support Services,
21/09/2016,2150808,458.33,BAE Trust T/A The Hereford Academy,201706,Central Childrens Directorate Costs,Support Services,
21/09/2016,2150911,719.17,BAE Trust T/A The Hereford Academy,201706,Central Childrens Directorate Costs,Support Services,
21/09/2016,2150922,458.33,BAE Trust T/A The Hereford Academy,201706,Central Childrens Directorate Costs,Support Services,
21/09/2016,2150632,"1,033.33",Barrs Court Academy,201706,Central Childrens Directorate Costs,Support Services,
21/09/2016,2150633,"1,033.33",Barrs Court Academy,201706,Central Childrens Directorate Costs,Support Services,
21/09/2016,2150634,"1,033.33",Barrs Court Academy,201706,Central Childrens Directorate Costs,Support Services,
21/09/2016,2150635,"1,033.33",Barrs Court Academy,201706,Central Childrens Directorate Costs,Support Services,
21/09/2016,2150636,458.33,Barrs Court Academy,201706,Central Childrens Directorate Costs,Support Services,
21/09/2016,2150637,719.17,Barrs Court Academy,201706,Central Childrens Directorate Costs,Support Services,
21/09/2016,2150638,719.17,Barrs Court Academy,201706,Central Childrens Directorate Costs,Support Services,
21/09/2016,2150639,458.33,Barrs Court Academy,201706,Central Childrens Directorate Costs,Support Services,
21/09/2016,2150640,719.17,Barrs Court Academy,201706,Central Childrens Directorate Costs,Support Services,
21/09/2016,2150641,"1,033.33",Barrs Court Academy,201706,Central Childrens Directorate Costs,Support Services,
21/09/2016,2150642,"1,033.33",Barrs Court Academy,201706,Central Childrens Directorate Costs,Support Services,
21/09/2016,2150643,719.17,Barrs Court Academy,201706,Central Childrens Directorate Costs,Support Services,
21/09/2016,2150644,"1,033.33",Barrs Court Academy,201706,Central Childrens Directorate Costs,Support Services,
21/09/2016,2150645,458.33,Barrs Court Academy,201706,Central Childrens Directorate Costs,Support Services,
21/09/2016,2150646,"1,399.17",Barrs Court Academy,201706,Central Childrens Directorate Costs,Support Services,
21/09/2016,2150647,719.17,Barrs Court Academy,201706,Central Childrens Directorate Costs,Support Services,
21/09/2016,2150648,719.17,Barrs Court Academy,201706,Central Childrens Directorate Costs,Support Services,
21/09/2016,2150649,"1,033.33",Barrs Court Academy,201706,Central Childrens Directorate Costs,Support Services,
21/09/2016,2150650,719.17,Barrs Court Academy,201706,Central Childrens Directorate Costs,Support Services,
21/09/2016,2150651,719.17,Barrs Court Academy,201706,Central Childrens Directorate Costs,Support Services,
21/09/2016,2150652,458.33,Barrs Court Academy,201706,Central Childrens Directorate Costs,Support Services,
21/09/2016,2150653,"1,033.33",Barrs Court Academy,201706,Central Childrens Directorate Costs,Support Services,
21/09/2016,2150654,"1,033.33",Barrs Court Academy,201706,Central Childrens Directorate Costs,Support Services,
21/09/2016,2150655,719.17,Barrs Court Academy,201706,Central Childrens Directorate Costs,Support Services,
21/09/2016,2150656,719.17,Barrs Court Academy,201706,Central Childrens Directorate Costs,Support Services,
21/09/2016,2150657,"1,033.33",Barrs Court Academy,201706,Central Childrens Directorate Costs,Support Services,
21/09/2016,2150658,"1,033.33",Barrs Court Academy,201706,Central Childrens Directorate Costs,Support Services,
21/09/2016,2150659,719.17,Barrs Court Academy,201706,Central Childrens Directorate Costs,Support Services,
21/09/2016,2150660,"1,399.17",Barrs Court Academy,201706,Central Childrens Directorate Costs,Support Services,
21/09/2016,2150661,"1,033.33",Barrs Court Academy,201706,Central Childrens Directorate Costs,Support Services,
21/09/2016,2150662,"1,033.33",Barrs Court Academy,201706,Central Childrens Directorate Costs,Support Services,
21/09/2016,2150663,458.33,Barrs Court Academy,201706,Central Childrens Directorate Costs,Support Services,
21/09/2016,2150664,719.17,Barrs Court Academy,201706,Central Childrens Directorate Costs,Support Services,
21/09/2016,2150665,458.33,Barrs Court Academy,201706,Central Childrens Directorate Costs,Support Services,
21/09/2016,2150666,458.33,Barrs Court Academy,201706,Central Childrens Directorate Costs,Support Services,
21/09/2016,2150667,458.33,Barrs Court Academy,201706,Central Childrens Directorate Costs,Support Services,
21/09/2016,2150668,719.17,Barrs Court Academy,201706,Central Childrens Directorate Costs,Support Services,
21/09/2016,2150669,719.17,Barrs Court Academy,201706,Central Childrens Directorate Costs,Support Services,
21/09/2016,2150670,"1,033.33",Barrs Court Academy,201706,Central Childrens Directorate Costs,Support Services,
21/09/2016,2150671,719.17,Barrs Court Academy,201706,Central Childrens Directorate Costs,Support Services,
21/09/2016,2150672,458.33,Barrs Court Academy,201706,Central Childrens Directorate Costs,Support Services,
21/09/2016,2150673,719.17,Barrs Court Academy,201706,Central Childrens Directorate Costs,Support Services,
21/09/2016,2150674,719.17,Barrs Court Academy,201706,Central Childrens Directorate Costs,Support Services,
21/09/2016,2150675,"1,033.33",Barrs Court Academy,201706,Central Childrens Directorate Costs,Support Services,
21/09/2016,2150676,"1,033.33",Barrs Court Academy,201706,Central Childrens Directorate Costs,Support Services,
21/09/2016,2150677,"1,033.33",Barrs Court Academy,201706,Central Childrens Directorate Costs,Support Services,
21/09/2016,2150678,"1,033.33",Barrs Court Academy,201706,Central Childrens Directorate Costs,Support Services,
21/09/2016,2150679,"1,399.17",Barrs Court Academy,201706,Central Childrens Directorate Costs,Support Services,
21/09/2016,2150680,"1,033.33",Barrs Court Academy,201706,Central Childrens Directorate Costs,Support Services,
21/09/2016,2150681,"1,033.33",Barrs Court Academy,201706,Central Childrens Directorate Costs,Support Services,
21/09/2016,2150682,"1,399.17",Barrs Court Academy,201706,Central Childrens Directorate Costs,Support Services,
21/09/2016,2150683,719.17,Barrs Court Academy,201706,Central Childrens Directorate Costs,Support Services,
21/09/2016,2150684,719.17,Barrs Court Academy,201706,Central Childrens Directorate Costs,Support Services,
21/09/2016,2150685,719.17,Barrs Court Academy,201706,Central Childrens Directorate Costs,Support Services,
21/09/2016,2150686,719.17,Barrs Court Academy,201706,Central Childrens Directorate Costs,Support Services,
21/09/2016,2150726,458.33,Barrs Court Academy,201706,Central Childrens Directorate Costs,Support Services,
21/09/2016,2150727,"1,033.33",Barrs Court Academy,201706,Central Childrens Directorate Costs,Support Services,
21/09/2016,2150728,"1,399.17",Barrs Court Academy,201706,Central Childrens Directorate Costs,Support Services,
21/09/2016,2150729,"1,033.33",Barrs Court Academy,201706,Central Childrens Directorate Costs,Support Services,
21/09/2016,2150730,"1,033.33",Barrs Court Academy,201706,Central Childrens Directorate Costs,Support Services,
21/09/2016,2150731,719.17,Barrs Court Academy,201706,Central Childrens Directorate Costs,Support Services,
21/09/2016,2150732,719.17,Barrs Court Academy,201706,Central Childrens Directorate Costs,Support Services,
21/09/2016,2150733,"1,033.33",Barrs Court Academy,201706,Central Childrens Directorate Costs,Support Services,
21/09/2016,2150734,458.33,Barrs Court Academy,201706,Central Childrens Directorate Costs,Support Services,
21/09/2016,2150735,458.33,Barrs Court Academy,201706,Central Childrens Directorate Costs,Support Services,
21/09/2016,2150736,458.33,Barrs Court Academy,201706,Central Childrens Directorate Costs,Support Services,
21/09/2016,2150737,458.33,Barrs Court Academy,201706,Central Childrens Directorate Costs,Support Services,
21/09/2016,2150738,"1,033.33",Barrs Court Academy,201706,Central Childrens Directorate Costs,Support Services,
21/09/2016,2150739,"1,399.17",Barrs Court Academy,201706,Central Childrens Directorate Costs,Support Services,
21/09/2016,2150740,"1,033.33",Barrs Court Academy,201706,Central Childrens Directorate Costs,Support Services,
21/09/2016,2150750,719.17,Barrs Court Academy,201706,Central Childrens Directorate Costs,Support Services,
21/09/2016,2150751,458.33,Barrs Court Academy,201706,Central Childrens Directorate Costs,Support Services,
21/09/2016,2150752,719.17,Barrs Court Academy,201706,Central Childrens Directorate Costs,Support Services,
21/09/2016,2150753,719.17,Barrs Court Academy,201706,Central Childrens Directorate Costs,Support Services,
21/09/2016,2150759,458.33,Barrs Court Academy,201706,Central Childrens Directorate Costs,Support Services,
21/09/2016,2150770,"1,033.33",Barrs Court Academy,201706,Central Childrens Directorate Costs,Support Services,
21/09/2016,2150784,458.33,Barrs Court Academy,201706,Central Childrens Directorate Costs,Support Services,
21/09/2016,2150785,458.33,Barrs Court Academy,201706,Central Childrens Directorate Costs,Support Services,
21/09/2016,2150786,458.33,Barrs Court Academy,201706,Central Childrens Directorate Costs,Support Services,
21/09/2016,2150787,"1,033.33",Barrs Court Academy,201706,Central Childrens Directorate Costs,Support Services,
21/09/2016,2150792,458.33,Barrs Court Academy,201706,Central Childrens Directorate Costs,Support Services,
21/09/2016,2150794,"1,033.33",Barrs Court Academy,201706,Central Childrens Directorate Costs,Support Services,
21/09/2016,2150795,458.33,Barrs Court Academy,201706,Central Childrens Directorate Costs,Support Services,
21/09/2016,2150796,"1,033.33",Barrs Court Academy,201706,Central Childrens Directorate Costs,Support Services,
21/09/2016,2150798,458.33,Barrs Court Academy,201706,Central Childrens Directorate Costs,Support Services,
21/09/2016,2150802,458.33,Barrs Court Academy,201706,Central Childrens Directorate Costs,Support Services,
21/09/2016,2150803,458.33,Barrs Court Academy,201706,Central Childrens Directorate Costs,Support Services,
21/09/2016,2150804,719.17,Barrs Court Academy,201706,Central Childrens Directorate Costs,Support Services,
21/09/2016,2150805,458.33,Barrs Court Academy,201706,Central Childrens Directorate Costs,Support Services,
21/09/2016,2150806,458.33,Barrs Court Academy,201706,Central Childrens Directorate Costs,Support Services,
21/09/2016,2150866,458.33,Barrs Court Academy,201706,Central Childrens Directorate Costs,Support Services,
21/09/2016,2150881,458.33,Barrs Court Academy,201706,Central Childrens Directorate Costs,Support Services,
21/09/2016,2150882,"1,033.33",Barrs Court Academy,201706,Central Childrens Directorate Costs,Support Services,
21/09/2016,2150883,719.17,Barrs Court Academy,201706,Central Childrens Directorate Costs,Support Services,
21/09/2016,2150916,458.33,Barrs Court Academy,201706,Central Childrens Directorate Costs,Support Services,
21/09/2016,2150926,458.33,Barrs Court Academy,201706,Central Childrens Directorate Costs,Support Services,
21/09/2016,2150927,"1,399.17",Barrs Court Academy,201706,Central Childrens Directorate Costs,Support Services,
21/09/2016,2150928,458.33,Barrs Court Academy,201706,Central Childrens Directorate Costs,Support Services,
21/09/2016,2150951,719.17,Barrs Court Academy,201706,Central Childrens Directorate Costs,Support Services,
02/09/2016,2146413,"1,045.00",Bizzie Lizzies,201706,Education and Commissioning,Transfer Payments,
09/09/2016,3836042,842.1,Black Pepper (Ledbury) Ltd,201706,Schools,Supplies & Services,
02/09/2016,2146414,630,Broadlands Bright Sparks Playgroup,201706,Education and Commissioning,Transfer Payments,
21/09/2016,2150842,458.33,Brockhampton Primary School (Academy),201706,Central Childrens Directorate Costs,Support Services,
22/09/2016,2151083,"1,756.39",Bromyard Community Transport Ltd,201706,Environment and Place,Supplies & Services,
29/09/2016,2153968,"294,751.89",BT Plc,201706,Communities Capital,Capital Expenditure,
29/09/2016,2153969,"578,040.88",BT Plc,201706,Communities Capital,Capital Income,
02/09/2016,2146416,630,Busy Bees @ LPS,201706,Education and Commissioning,Transfer Payments,
02/09/2016,2146415,"1,045.00",Busy Bees Pre School (Clifford),201706,Education and Commissioning,Transfer Payments,
21/09/2016,2150865,458.33,Canon Pyon CE Academy,201706,Central Childrens Directorate Costs,Support Services,
22/09/2016,2151084,"1,877.09",CVS Ledbury & District (Ledbury Ring & Ride)Standing Order,201706,Environment and Place,Supplies & Services,
21/09/2016,2150821,"2,156.02",Derwen College,201706,Central Childrens Directorate Costs,Support Services,
21/09/2016,2150822,"2,208.70",Derwen College,201706,Central Childrens Directorate Costs,Support Services,
21/09/2016,2150823,"2,272.62",Derwen College,201706,Central Childrens Directorate Costs,Support Services,
21/09/2016,2150824,"2,208.70",Derwen College,201706,Central Childrens Directorate Costs,Support Services,
21/09/2016,2150825,"2,272.62",Derwen College,201706,Central Childrens Directorate Costs,Support Services,
21/09/2016,2150826,"2,272.62",Derwen College,201706,Central Childrens Directorate Costs,Support Services,
21/09/2016,2150827,"2,272.62",Derwen College,201706,Central Childrens Directorate Costs,Support Services,
21/09/2016,2150828,"1,258.98",Derwen College,201706,Central Childrens Directorate Costs,Support Services,
21/09/2016,2150829,"1,258.98",Derwen College,201706,Central Childrens Directorate Costs,Support Services,
21/09/2016,2150830,"1,258.98",Derwen College,201706,Central Childrens Directorate Costs,Support Services,
21/09/2016,2150831,"1,258.98",Derwen College,201706,Central Childrens Directorate Costs,Support Services,
21/09/2016,2150832,"1,258.98",Derwen College,201706,Central Childrens Directorate Costs,Support Services,
21/09/2016,2150947,"1,153.50",Derwen College,201706,Central Childrens Directorate Costs,Support Services,
21/09/2016,2150948,"2,031.66",Derwen College,201706,Central Childrens Directorate Costs,Support Services,
22/09/2016,2151085,"1,399.87",Dore Community Transport,201706,Environment and Place,Supplies & Services,
21/09/2016,2150974,"1,137.00",Earl Mortimer College & Sixth Form HCC,201706,Children & Young People Capital,Capital Income,
21/09/2016,2150992,448,Ewyas Harold Primary School-A/C 63712842,201706,Children & Young People Capital,Capital Income,
21/09/2016,2150887,458.33,Fairfield High School (Academy),201706,Central Childrens Directorate Costs,Support Services,
30/09/2016,2155695,535,Grow & Achieve Ltd,201706,Education and Commissioning,Support Services,
22/09/2016,2151086,750.58,Hay & District Dial a Ride,201706,Environment and Place,Supplies & Services,
22/09/2016,2151096,"18,463.00",Hereford Integrated Behaviour Outreach Service,201706,Central Childrens Directorate Costs,Third Party Payments,
22/09/2016,2151097,"27,500.00",Hereford Integrated Behaviour Outreach Service,201706,Central Childrens Directorate Costs,Third Party Payments,
22/09/2016,2151094,"66,666.67",Hereford Integrated Behaviour Outreach Service,201706,Education and Commissioning,Third Party Payments,
22/09/2016,2151095,"1,500.00",Hereford Integrated Behaviour Outreach Service,201706,Education and Commissioning,Third Party Payments,
21/09/2016,2150934,458.33,Herefordshire Marches Federation Sutton Primary Academy,201706,Central Childrens Directorate Costs,Support Services,
21/09/2016,2150956,"1,286.28",Herefordshire Marches Federation Sutton Primary Academy,201706,Central Childrens Directorate Costs,Support Services,
21/09/2016,2150772,458.33,Herefordshire Marches Federation-Kings Caple,201706,Central Childrens Directorate Costs,Support Services,
21/09/2016,2150757,458.33,Herefordshire Marches Federation-Lord Scudamore,201706,Central Childrens Directorate Costs,Support Services,
21/09/2016,2150905,458.33,Herefordshire Marches Federation-Lord Scudamore,201706,Central Childrens Directorate Costs,Support Services,
21/09/2016,2150608,458.33,Holmer C of E Academy,201706,Central Childrens Directorate Costs,Support Services,
21/09/2016,2150898,458.33,Holmer C of E Academy,201706,Central Childrens Directorate Costs,Support Services,
14/09/2016,3826510,440,Hoople Ltd,201706,Holding Codes,Holding Codes,
30/09/2016,3836705,604,Hoople Ltd,201706,Schools,Supplies & Services,
02/09/2016,2146418,905,Hunderton Neighbourhood Nursery,201706,Education and Commissioning,Transfer Payments,
22/09/2016,2151087,"2,591.10",HVOSS,201706,Environment and Place,Supplies & Services,
21/09/2016,2150617,458.33,John Kyrle High School,201706,Central Childrens Directorate Costs,Support Services,
21/09/2016,2150851,719.17,John Kyrle High School,201706,Central Childrens Directorate Costs,Support Services,
21/09/2016,2150852,458.33,John Kyrle High School,201706,Central Childrens Directorate Costs,Support Services,
21/09/2016,2150930,458.33,John Kyrle High School,201706,Central Childrens Directorate Costs,Support Services,
21/09/2016,2150713,458.33,John Masefield High School (Academy),201706,Central Childrens Directorate Costs,Support Services,
21/09/2016,2150801,458.33,John Masefield High School (Academy),201706,Central Childrens Directorate Costs,Support Services,
21/09/2016,2150841,458.33,John Masefield High School (Academy),201706,Central Childrens Directorate Costs,Support Services,
21/09/2016,2150870,458.33,John Masefield High School (Academy),201706,Central Childrens Directorate Costs,Support Services,
02/09/2016,2146419,630,Kes Nursery And Creche,201706,Education and Commissioning,Transfer Payments,
02/09/2016,2146420,"1,045.00",Kimbolton Nursery Group,201706,Education and Commissioning,Transfer Payments,
21/09/2016,2150906,458.33,Kingstone & Thruxton Primary School (Academy),201706,Central Childrens Directorate Costs,Support Services,
21/09/2016,2150743,458.33,Kingstone High School (Academy),201706,Central Childrens Directorate Costs,Support Services,
21/09/2016,2150615,458.33,Lady Hawkins School (Academy),201706,Central Childrens Directorate Costs,Support Services,
21/09/2016,2150758,458.33,Lady Hawkins School (Academy),201706,Central Childrens Directorate Costs,Support Services,
21/09/2016,2150953,458.33,Lady Hawkins School (Academy),201706,Central Childrens Directorate Costs,Support Services,
30/09/2016,2153998,"1,550.67",Ledbury Primary School Imprest,201706,Schools,Premises-Related Expenditure,
30/09/2016,2153998,"3,937.40",Ledbury Primary School Imprest,201706,Schools,Supplies & Services,
09/09/2016,2147736,500,Leominster Carpets,201706,Safeguarding and Family Support,Third Party Payments,
02/09/2016,2146421,"1,045.00",Lollipops Nursery School And Creche,201706,Education and Commissioning,Transfer Payments,
21/09/2016,2150604,458.33,Lugwardine Primary Academy,201706,Central Childrens Directorate Costs,Support Services,
02/09/2016,2146422,426,Madley Pre School,201706,Education and Commissioning,Transfer Payments,
14/09/2016,2147993,963.69,Madley Primary School Imprest A/C,201706,Schools,Supplies & Services,
02/09/2016,2146423,852,Marden Playgroup,201706,Education and Commissioning,Transfer Payments,
21/09/2016,2150984,777,Marlbrook  Primary School,201706,Children & Young People Capital,Capital Income,
02/09/2016,2146385,"7,314.49",Matrix SCM Ltd,201706,Adults Operations,Employees,
09/09/2016,2147240,"14,605.80",Matrix SCM Ltd,201706,Adults Operations,Employees,
14/09/2016,2148704,"14,605.80",Matrix SCM Ltd,201706,Adults Operations,Employees,
16/09/2016,2149942,"6,502.74",Matrix SCM Ltd,201706,Adults Operations,Employees,
23/09/2016,2151234,"25,123.25",Matrix SCM Ltd,201706,Adults Operations,Employees,
30/09/2016,2155528,"11,623.34",Matrix SCM Ltd,201706,Adults Operations,Employees,
02/09/2016,2146385,"1,467.63",Matrix SCM Ltd,201706,Commissioning Adults,Employees,
16/09/2016,2149942,"3,913.68",Matrix SCM Ltd,201706,Commissioning Adults,Employees,
23/09/2016,2151234,"2,262.60",Matrix SCM Ltd,201706,Commissioning Adults,Employees,
30/09/2016,2155528,"1,467.63",Matrix SCM Ltd,201706,Commissioning Adults,Employees,
02/09/2016,2146385,"9,328.88",Matrix SCM Ltd,201706,Communities,Employees,
09/09/2016,2147240,"2,539.13",Matrix SCM Ltd,201706,Communities,Employees,
14/09/2016,2148704,"2,539.13",Matrix SCM Ltd,201706,Communities,Employees,
16/09/2016,2149942,"4,336.03",Matrix SCM Ltd,201706,Communities,Employees,
23/09/2016,2151234,"6,079.43",Matrix SCM Ltd,201706,Communities,Employees,
30/09/2016,2155528,"2,716.82",Matrix SCM Ltd,201706,Communities,Employees,
02/09/2016,2146385,"4,486.20",Matrix SCM Ltd,201706,Education and Commissioning,Employees,
16/09/2016,2149942,"5,289.27",Matrix SCM Ltd,201706,Education and Commissioning,Employees,
23/09/2016,2151234,"1,374.83",Matrix SCM Ltd,201706,Education and Commissioning,Employees,
30/09/2016,2155528,"5,860.24",Matrix SCM Ltd,201706,Education and Commissioning,Employees,
09/09/2016,2147240,"2,085.60",Matrix SCM Ltd,201706,Mental Health,Employees,
14/09/2016,2148704,"2,085.60",Matrix SCM Ltd,201706,Mental Health,Employees,
23/09/2016,2151234,"1,137.60",Matrix SCM Ltd,201706,Mental Health,Employees,
30/09/2016,2155528,"5,574.24",Matrix SCM Ltd,201706,Mental Health,Employees,
02/09/2016,2146385,"20,983.36",Matrix SCM Ltd,201706,Safeguarding and Family Support,Employees,
09/09/2016,2147240,"20,937.99",Matrix SCM Ltd,201706,Safeguarding and Family Support,Employees,
14/09/2016,2148704,"20,937.99",Matrix SCM Ltd,201706,Safeguarding and Family Support,Employees,
16/09/2016,2149942,"20,791.82",Matrix SCM Ltd,201706,Safeguarding and Family Support,Employees,
23/09/2016,2151234,"14,584.33",Matrix SCM Ltd,201706,Safeguarding and Family Support,Employees,
30/09/2016,2155528,"35,093.99",Matrix SCM Ltd,201706,Safeguarding and Family Support,Employees,
02/09/2016,2146424,975,Merry Go Round,201706,Education and Commissioning,Transfer Payments,
21/09/2016,2150610,458.33,Mordiford Church of England Primary School,201706,Central Childrens Directorate Costs,Support Services,
21/09/2016,2150835,458.33,Mordiford Church of England Primary School,201706,Central Childrens Directorate Costs,Support Services,
,2155474,"1,099.26",Natwest One Card (Direct Debit A/C),201706,Resources,Premises-Related Expenditure,
02/09/2016,2146425,426,Noahs Ark Pre-School,201706,Education and Commissioning,Transfer Payments,
02/09/2016,2146426,426,Noahs Ark Pre-School,201706,Education and Commissioning,Transfer Payments,
02/09/2016,2146427,630,Noahs Ark Pre-School,201706,Education and Commissioning,Transfer Payments,
02/09/2016,2146417,"1,045.00",Oaks Ltd,201706,Education and Commissioning,Transfer Payments,
21/09/2016,2150559,595.21,Orleton C.E. Primary School Imprest,201706,Schools,Premises-Related Expenditure,
21/09/2016,2150559,"1,887.19",Orleton C.E. Primary School Imprest,201706,Schools,Supplies & Services,
14/09/2016,3835242,990,P W Jones (Hereford) Ltd,201706,Schools,Transport-Related Expenditure,
30/09/2016,2153720,"16,116.22",Patterson Medical Ltd,201706,Environment and Place,Premises-Related Expenditure,
09/09/2016,3835044,"3,880.80",REDACTED,201706,Schools,Supplies & Services,
09/09/2016,3835045,666.6,REDACTED,201706,Schools,Supplies & Services,
09/09/2016,3836614,486.2,REDACTED,201706,Schools,Supplies & Services,
21/09/2016,2151114,"1,138.33",REDACTED,201706,Adults Operations,Premises-Related Expenditure,
21/09/2016,2151115,"1,160.30",REDACTED,201706,Adults Operations,Premises-Related Expenditure,
22/09/2016,2151108,625,REDACTED,201706,Adults Operations,Premises-Related Expenditure,
28/09/2016,2151907,660.04,REDACTED,201706,Safeguarding and Family Support,Supplies & Services,
28/09/2016,2151914,866.66,REDACTED,201706,Safeguarding and Family Support,Supplies & Services,
22/09/2016,2151112,420,REDACTED,201706,Adults Operations,Premises-Related Expenditure,
21/09/2016,2151117,"1,204.23",REDACTED,201706,Adults Operations,Premises-Related Expenditure,
22/09/2016,2151110,"4,333.33",REDACTED,201706,Adults Operations,Premises-Related Expenditure,
22/09/2016,2151099,600,REDACTED,201706,Adults Operations,Premises-Related Expenditure,
22/09/2016,2151098,600,REDACTED,201706,Adults Operations,Premises-Related Expenditure,
22/09/2016,2155476,665,REDACTED,201706,Adults Operations,Supplies & Services,
29/09/2016,2155477,665,REDACTED,201706,Adults Operations,Supplies & Services,
21/09/2016,2150558,644.67,REDACTED,201706,Safeguarding and Family Support,Transport-Related Expenditure,
22/09/2016,2151104,550,REDACTED,201706,Adults Operations,Premises-Related Expenditure,
07/09/2016,2146855,"10,781.78",REDACTED,201706,Adults Operations,Supplies & Services,
22/09/2016,2151105,480,REDACTED,201706,Adults Operations,Premises-Related Expenditure,
22/09/2016,2151106,475,REDACTED,201706,Adults Operations,Premises-Related Expenditure,
28/09/2016,2151908,"1,320.00",REDACTED,201706,Safeguarding and Family Support,Supplies & Services,
21/09/2016,2151100,450,REDACTED,201706,Adults Operations,Premises-Related Expenditure,
21/09/2016,2151101,450,REDACTED,201706,Adults Operations,Premises-Related Expenditure,
21/09/2016,2151111,650,REDACTED,201706,Adults Operations,Premises-Related Expenditure,
21/09/2016,2151118,"1,226.19",REDACTED,201706,Adults Operations,Premises-Related Expenditure,
09/09/2016,3836947,468.59,REDACTED,201706,Adults Operations,Supplies & Services,
28/09/2016,2151910,433.33,REDACTED,201706,Safeguarding and Family Support,Supplies & Services,
28/09/2016,2151913,"1,183.00",REDACTED,201706,Safeguarding and Family Support,Supplies & Services,
21/09/2016,2151103,460,REDACTED,201706,Adults Operations,Premises-Related Expenditure,
21/09/2016,2151116,"1,182.26",REDACTED,201706,Adults Operations,Premises-Related Expenditure,
30/09/2016,2155698,"4,658.57",REDACTED,201706,Safeguarding and Family Support,Third Party Payments,
22/09/2016,2151113,600,REDACTED,201706,Adults Operations,Premises-Related Expenditure,
23/09/2016,2151188,"1,512.00",REDACTED,201706,Safeguarding and Family Support,Third Party Payments,
09/09/2016,2147733,495,REDACTED,201706,Safeguarding and Family Support,Third Party Payments,
16/09/2016,2150266,441.5,REDACTED,201706,Safeguarding and Family Support,Third Party Payments,
28/09/2016,2151912,433.33,REDACTED,201706,Safeguarding and Family Support,Supplies & Services,
02/09/2016,2146385,483.75,REDACTED,201706,Adults Operations,Employees,
16/09/2016,2149942,596.63,REDACTED,201706,Adults Operations,Employees,
23/09/2016,2151234,483.75,REDACTED,201706,Adults Operations,Employees,
30/09/2016,2155528,591.25,REDACTED,201706,Adults Operations,Employees,
09/09/2016,2147240,"1,273.50",REDACTED,201706,Safeguarding and Family Support,Employees,
14/09/2016,2148704,"1,273.50",REDACTED,201706,Safeguarding and Family Support,Employees,
16/09/2016,2149942,"3,190.28",REDACTED,201706,Safeguarding and Family Support,Employees,
23/09/2016,2151234,"1,564.59",REDACTED,201706,Safeguarding and Family Support,Employees,
30/09/2016,2155528,"1,559.19",REDACTED,201706,Safeguarding and Family Support,Employees,
30/09/2016,2155694,"1,634.84",REDACTED,201706,Safeguarding and Family Support,Third Party Payments,
21/09/2016,2150997,794,Riverside Primary School - HCC,201706,Children & Young People Capital,Capital Income,
21/09/2016,2150815,458.33,Robert Owen Academey,201706,Central Childrens Directorate Costs,Support Services,
21/09/2016,2150933,458.33,Robert Owen Academey,201706,Central Childrens Directorate Costs,Support Services,
22/09/2016,2151088,"1,155.57",Ross Country Cars (Standing Order),201706,Environment and Place,Supplies & Services,
28/09/2016,2151714,"1,728.88",Shobdon CP School Imprest A/C,201706,Schools,Supplies & Services,
21/09/2016,2150611,458.33,St Pauls Church of England Primary School,201706,Central Childrens Directorate Costs,Support Services,
21/09/2016,2150612,458.33,St Pauls Church of England Primary School,201706,Central Childrens Directorate Costs,Support Services,
21/09/2016,2150867,458.33,St Pauls Church of England Primary School,201706,Central Childrens Directorate Costs,Support Services,
21/09/2016,2150907,458.33,St Pauls Church of England Primary School,201706,Central Childrens Directorate Costs,Support Services,
21/09/2016,2150613,443.06,St Thomas Cantilupe CE Academy,201706,Central Childrens Directorate Costs,Support Services,
21/09/2016,2150775,458.33,St Thomas Cantilupe CE Academy,201706,Central Childrens Directorate Costs,Support Services,
21/09/2016,2150853,458.33,St Thomas Cantilupe CE Academy,201706,Central Childrens Directorate Costs,Support Services,
21/09/2016,2150899,458.33,St Thomas Cantilupe CE Academy,201706,Central Childrens Directorate Costs,Support Services,
21/09/2016,2150909,458.33,St Thomas Cantilupe CE Academy,201706,Central Childrens Directorate Costs,Support Services,
14/09/2016,3837464,"4,170.00",Star Technology Services Ltd,201706,Resources,Supplies & Services,
21/09/2016,2150834,458.33,Stretton Sugwas CE Academy,201706,Central Childrens Directorate Costs,Support Services,
21/09/2016,2150836,458.33,Stretton Sugwas CE Academy,201706,Central Childrens Directorate Costs,Support Services,
21/09/2016,2150843,458.33,Stretton Sugwas CE Academy,201706,Central Childrens Directorate Costs,Support Services,
09/09/2016,2147337,"10,780.00",Support Services - Legal,201706,Communities,Supplies & Services,
21/09/2016,2150688,719.17,The Brookfield School (Academy),201706,Central Childrens Directorate Costs,Support Services,
21/09/2016,2150689,719.17,The Brookfield School (Academy),201706,Central Childrens Directorate Costs,Support Services,
21/09/2016,2150690,458.33,The Brookfield School (Academy),201706,Central Childrens Directorate Costs,Support Services,
21/09/2016,2150691,719.17,The Brookfield School (Academy),201706,Central Childrens Directorate Costs,Support Services,
21/09/2016,2150692,458.33,The Brookfield School (Academy),201706,Central Childrens Directorate Costs,Support Services,
21/09/2016,2150693,458.33,The Brookfield School (Academy),201706,Central Childrens Directorate Costs,Support Services,
21/09/2016,2150694,458.33,The Brookfield School (Academy),201706,Central Childrens Directorate Costs,Support Services,
21/09/2016,2150695,719.17,The Brookfield School (Academy),201706,Central Childrens Directorate Costs,Support Services,
21/09/2016,2150696,719.17,The Brookfield School (Academy),201706,Central Childrens Directorate Costs,Support Services,
21/09/2016,2150697,719.17,The Brookfield School (Academy),201706,Central Childrens Directorate Costs,Support Services,
21/09/2016,2150698,719.17,The Brookfield School (Academy),201706,Central Childrens Directorate Costs,Support Services,
21/09/2016,2150699,719.17,The Brookfield School (Academy),201706,Central Childrens Directorate Costs,Support Services,
21/09/2016,2150700,719.17,The Brookfield School (Academy),201706,Central Childrens Directorate Costs,Support Services,
21/09/2016,2150701,719.17,The Brookfield School (Academy),201706,Central Childrens Directorate Costs,Support Services,
21/09/2016,2150702,458.33,The Brookfield School (Academy),201706,Central Childrens Directorate Costs,Support Services,
21/09/2016,2150703,458.33,The Brookfield School (Academy),201706,Central Childrens Directorate Costs,Support Services,
21/09/2016,2150704,719.17,The Brookfield School (Academy),201706,Central Childrens Directorate Costs,Support Services,
21/09/2016,2150705,719.17,The Brookfield School (Academy),201706,Central Childrens Directorate Costs,Support Services,
21/09/2016,2150706,458.33,The Brookfield School (Academy),201706,Central Childrens Directorate Costs,Support Services,
21/09/2016,2150707,719.17,The Brookfield School (Academy),201706,Central Childrens Directorate Costs,Support Services,
21/09/2016,2150708,458.33,The Brookfield School (Academy),201706,Central Childrens Directorate Costs,Support Services,
21/09/2016,2150709,719.17,The Brookfield School (Academy),201706,Central Childrens Directorate Costs,Support Services,
21/09/2016,2150710,719.17,The Brookfield School (Academy),201706,Central Childrens Directorate Costs,Support Services,
21/09/2016,2150723,719.17,The Brookfield School (Academy),201706,Central Childrens Directorate Costs,Support Services,
21/09/2016,2150724,719.17,The Brookfield School (Academy),201706,Central Childrens Directorate Costs,Support Services,
21/09/2016,2150725,719.17,The Brookfield School (Academy),201706,Central Childrens Directorate Costs,Support Services,
21/09/2016,2150741,"2,141.67",The Brookfield School (Academy),201706,Central Childrens Directorate Costs,Support Services,
21/09/2016,2150745,458.33,The Brookfield School (Academy),201706,Central Childrens Directorate Costs,Support Services,
21/09/2016,2150746,458.33,The Brookfield School (Academy),201706,Central Childrens Directorate Costs,Support Services,
21/09/2016,2150748,458.33,The Brookfield School (Academy),201706,Central Childrens Directorate Costs,Support Services,
21/09/2016,2150761,719.17,The Brookfield School (Academy),201706,Central Childrens Directorate Costs,Support Services,
21/09/2016,2150762,719.17,The Brookfield School (Academy),201706,Central Childrens Directorate Costs,Support Services,
21/09/2016,2150763,458.33,The Brookfield School (Academy),201706,Central Childrens Directorate Costs,Support Services,
21/09/2016,2150764,458.33,The Brookfield School (Academy),201706,Central Childrens Directorate Costs,Support Services,
21/09/2016,2150765,719.17,The Brookfield School (Academy),201706,Central Childrens Directorate Costs,Support Services,
21/09/2016,2150766,458.33,The Brookfield School (Academy),201706,Central Childrens Directorate Costs,Support Services,
21/09/2016,2150767,719.17,The Brookfield School (Academy),201706,Central Childrens Directorate Costs,Support Services,
21/09/2016,2150774,719.17,The Brookfield School (Academy),201706,Central Childrens Directorate Costs,Support Services,
21/09/2016,2150789,458.33,The Brookfield School (Academy),201706,Central Childrens Directorate Costs,Support Services,
21/09/2016,2150799,458.33,The Brookfield School (Academy),201706,Central Childrens Directorate Costs,Support Services,
21/09/2016,2150800,458.33,The Brookfield School (Academy),201706,Central Childrens Directorate Costs,Support Services,
21/09/2016,2150813,458.33,The Brookfield School (Academy),201706,Central Childrens Directorate Costs,Support Services,
21/09/2016,2150814,458.33,The Brookfield School (Academy),201706,Central Childrens Directorate Costs,Support Services,
21/09/2016,2150817,458.33,The Brookfield School (Academy),201706,Central Childrens Directorate Costs,Support Services,
21/09/2016,2150838,458.33,The Brookfield School (Academy),201706,Central Childrens Directorate Costs,Support Services,
21/09/2016,2150839,458.33,The Brookfield School (Academy),201706,Central Childrens Directorate Costs,Support Services,
21/09/2016,2150847,458.33,The Brookfield School (Academy),201706,Central Childrens Directorate Costs,Support Services,
21/09/2016,2150848,458.33,The Brookfield School (Academy),201706,Central Childrens Directorate Costs,Support Services,
21/09/2016,2150850,458.33,The Brookfield School (Academy),201706,Central Childrens Directorate Costs,Support Services,
21/09/2016,2150855,"1,033.33",The Brookfield School (Academy),201706,Central Childrens Directorate Costs,Support Services,
21/09/2016,2150856,719.17,The Brookfield School (Academy),201706,Central Childrens Directorate Costs,Support Services,
21/09/2016,2150857,719.17,The Brookfield School (Academy),201706,Central Childrens Directorate Costs,Support Services,
21/09/2016,2150858,719.17,The Brookfield School (Academy),201706,Central Childrens Directorate Costs,Support Services,
21/09/2016,2150859,719.17,The Brookfield School (Academy),201706,Central Childrens Directorate Costs,Support Services,
21/09/2016,2150860,719.17,The Brookfield School (Academy),201706,Central Childrens Directorate Costs,Support Services,
21/09/2016,2150861,719.17,The Brookfield School (Academy),201706,Central Childrens Directorate Costs,Support Services,
21/09/2016,2150862,719.17,The Brookfield School (Academy),201706,Central Childrens Directorate Costs,Support Services,
21/09/2016,2150863,719.17,The Brookfield School (Academy),201706,Central Childrens Directorate Costs,Support Services,
21/09/2016,2150864,719.17,The Brookfield School (Academy),201706,Central Childrens Directorate Costs,Support Services,
21/09/2016,2150868,458.33,The Brookfield School (Academy),201706,Central Childrens Directorate Costs,Support Services,
21/09/2016,2150871,458.33,The Brookfield School (Academy),201706,Central Childrens Directorate Costs,Support Services,
21/09/2016,2150872,"1,399.17",The Brookfield School (Academy),201706,Central Childrens Directorate Costs,Support Services,
21/09/2016,2150874,458.33,The Brookfield School (Academy),201706,Central Childrens Directorate Costs,Support Services,
21/09/2016,2150876,458.33,The Brookfield School (Academy),201706,Central Childrens Directorate Costs,Support Services,
21/09/2016,2150877,458.33,The Brookfield School (Academy),201706,Central Childrens Directorate Costs,Support Services,
21/09/2016,2150878,719.17,The Brookfield School (Academy),201706,Central Childrens Directorate Costs,Support Services,
21/09/2016,2150880,458.33,The Brookfield School (Academy),201706,Central Childrens Directorate Costs,Support Services,
21/09/2016,2150885,719.17,The Brookfield School (Academy),201706,Central Childrens Directorate Costs,Support Services,
21/09/2016,2150895,458.33,The Brookfield School (Academy),201706,Central Childrens Directorate Costs,Support Services,
21/09/2016,2150896,458.33,The Brookfield School (Academy),201706,Central Childrens Directorate Costs,Support Services,
21/09/2016,2150904,458.33,The Brookfield School (Academy),201706,Central Childrens Directorate Costs,Support Services,
21/09/2016,2150913,719.17,The Brookfield School (Academy),201706,Central Childrens Directorate Costs,Support Services,
21/09/2016,2150914,719.17,The Brookfield School (Academy),201706,Central Childrens Directorate Costs,Support Services,
21/09/2016,2150917,458.33,The Brookfield School (Academy),201706,Central Childrens Directorate Costs,Support Services,
21/09/2016,2150919,719.17,The Brookfield School (Academy),201706,Central Childrens Directorate Costs,Support Services,
21/09/2016,2150920,458.33,The Brookfield School (Academy),201706,Central Childrens Directorate Costs,Support Services,
21/09/2016,2150923,458.33,The Brookfield School (Academy),201706,Central Childrens Directorate Costs,Support Services,
21/09/2016,2150925,719.17,The Brookfield School (Academy),201706,Central Childrens Directorate Costs,Support Services,
21/09/2016,2150929,719.17,The Brookfield School (Academy),201706,Central Childrens Directorate Costs,Support Services,
21/09/2016,2150938,"2,749.98",The Brookfield School (Academy),201706,Central Childrens Directorate Costs,Support Services,
21/09/2016,2150939,458.33,The Brookfield School (Academy),201706,Central Childrens Directorate Costs,Support Services,
21/09/2016,2150940,458.33,The Brookfield School (Academy),201706,Central Childrens Directorate Costs,Support Services,
21/09/2016,2150941,719.17,The Brookfield School (Academy),201706,Central Childrens Directorate Costs,Support Services,
21/09/2016,2150942,"6,995.85",The Brookfield School (Academy),201706,Central Childrens Directorate Costs,Support Services,
21/09/2016,2150943,575.33,The Brookfield School (Academy),201706,Central Childrens Directorate Costs,Support Services,
21/09/2016,2150945,455.47,The Brookfield School (Academy),201706,Central Childrens Directorate Costs,Support Services,
22/09/2016,2151089,"2,901.58",The Plynlimon Trust Community Car Scheme,201706,Environment and Place,Supplies & Services,
21/09/2016,2150629,458.33,The Steiner Academy Hereford,201706,Central Childrens Directorate Costs,Support Services,
21/09/2016,2150769,458.33,The Steiner Academy Hereford,201706,Central Childrens Directorate Costs,Support Services,
21/09/2016,2150912,458.33,The Steiner Academy Hereford,201706,Central Childrens Directorate Costs,Support Services,
14/09/2016,2147742,"1,095.78",West Mercia Energy,201706,Environment and Place,Premises-Related Expenditure,
14/09/2016,2147743,"1,075.44",West Mercia Energy,201706,Environment and Place,Premises-Related Expenditure,
14/09/2016,2147766,586.7,West Mercia Energy,201706,Environment and Place,Premises-Related Expenditure,
14/09/2016,2147792,869.93,West Mercia Energy,201706,Environment and Place,Premises-Related Expenditure,
14/09/2016,2147794,589.26,West Mercia Energy,201706,Environment and Place,Premises-Related Expenditure,
14/09/2016,2147795,769.55,West Mercia Energy,201706,Environment and Place,Premises-Related Expenditure,
30/09/2016,2153066,"1,067.91",West Mercia Energy,201706,Environment and Place,Premises-Related Expenditure,
30/09/2016,2153067,604.07,West Mercia Energy,201706,Environment and Place,Premises-Related Expenditure,
30/09/2016,2153068,"12,298.97",West Mercia Energy,201706,Environment and Place,Premises-Related Expenditure,
30/09/2016,2153071,"1,184.84",West Mercia Energy,201706,Environment and Place,Premises-Related Expenditure,
30/09/2016,2153073,879.42,West Mercia Energy,201706,Environment and Place,Premises-Related Expenditure,
30/09/2016,2153087,651.46,West Mercia Energy,201706,Environment and Place,Premises-Related Expenditure,
30/09/2016,2153099,"1,873.42",West Mercia Energy,201706,Environment and Place,Premises-Related Expenditure,
30/09/2016,2153610,432.96,West Mercia Energy,201706,Environment and Place,Premises-Related Expenditure,
30/09/2016,2153648,"2,097.25",West Mercia Energy,201706,Environment and Place,Premises-Related Expenditure,
30/09/2016,2153715,607.33,West Mercia Energy,201706,Environment and Place,Premises-Related Expenditure,
30/09/2016,2153721,"13,823.69",West Mercia Energy,201706,Environment and Place,Premises-Related Expenditure,
30/09/2016,2153722,"11,867.46",West Mercia Energy,201706,Environment and Place,Premises-Related Expenditure,
30/09/2016,2153724,"11,997.99",West Mercia Energy,201706,Environment and Place,Premises-Related Expenditure,
30/09/2016,2153725,"13,851.19",West Mercia Energy,201706,Environment and Place,Premises-Related Expenditure,
30/09/2016,2153730,578.45,West Mercia Energy,201706,Environment and Place,Premises-Related Expenditure,
30/09/2016,2153069,818.7,West Mercia Energy,201706,Schools,Premises-Related Expenditure,
30/09/2016,2153070,647.29,West Mercia Energy,201706,Schools,Premises-Related Expenditure,
30/09/2016,2153072,529.13,West Mercia Energy,201706,Schools,Premises-Related Expenditure,
30/09/2016,2153647,478.46,West Mercia Energy,201706,Schools,Premises-Related Expenditure,
02/09/2016,2147742,"1,095.78",West Mercia Energy,201706,Environment and Place,Premises-Related Expenditure,Energy Costs
02/09/2016,2147743,"1,075.44",West Mercia Energy,201706,Environment and Place,Premises-Related Expenditure,Energy Costs
02/09/2016,2147766,586.7,West Mercia Energy,201706,Environment and Place,Premises-Related Expenditure,Energy Costs
02/09/2016,2147792,869.93,West Mercia Energy,201706,Environment and Place,Premises-Related Expenditure,Energy Costs
02/09/2016,2147794,589.26,West Mercia Energy,201706,Environment and Place,Premises-Related Expenditure,Energy Costs
02/09/2016,2147795,769.55,West Mercia Energy,201706,Environment and Place,Premises-Related Expenditure,Energy Costs
16/09/2016,2153610,432.96,West Mercia Energy,201706,Environment and Place,Premises-Related Expenditure,Energy Costs
16/09/2016,2153648,"2,097.25",West Mercia Energy,201706,Environment and Place,Premises-Related Expenditure,Energy Costs
16/09/2016,2153715,607.33,West Mercia Energy,201706,Environment and Place,Premises-Related Expenditure,Energy Costs
16/09/2016,2153720,"16,116.22",West Mercia Energy,201706,Environment and Place,Premises-Related Expenditure,Energy Costs
16/09/2016,2153721,"13,823.69",West Mercia Energy,201706,Environment and Place,Premises-Related Expenditure,Energy Costs
16/09/2016,2153722,"11,867.46",West Mercia Energy,201706,Environment and Place,Premises-Related Expenditure,Energy Costs
16/09/2016,2153724,"11,997.99",West Mercia Energy,201706,Environment and Place,Premises-Related Expenditure,Energy Costs
16/09/2016,2153725,"13,851.19",West Mercia Energy,201706,Environment and Place,Premises-Related Expenditure,Energy Costs
16/09/2016,2153730,578.45,West Mercia Energy,201706,Environment and Place,Premises-Related Expenditure,Energy Costs
20/09/2016,2153066,"1,067.91",West Mercia Energy,201706,Environment and Place,Premises-Related Expenditure,Energy Costs
20/09/2016,2153067,604.07,West Mercia Energy,201706,Environment and Place,Premises-Related Expenditure,Energy Costs
20/09/2016,2153068,"12,298.97",West Mercia Energy,201706,Environment and Place,Premises-Related Expenditure,Energy Costs
20/09/2016,2153071,"1,184.84",West Mercia Energy,201706,Environment and Place,Premises-Related Expenditure,Energy Costs
20/09/2016,2153073,879.42,West Mercia Energy,201706,Environment and Place,Premises-Related Expenditure,Energy Costs
20/09/2016,2153087,651.46,West Mercia Energy,201706,Environment and Place,Premises-Related Expenditure,Energy Costs
20/09/2016,2153099,"1,873.42",West Mercia Energy,201706,Environment and Place,Premises-Related Expenditure,Energy Costs
16/09/2016,2153647,478.46,West Mercia Energy,201706,Schools,Premises-Related Expenditure,Energy Costs
20/09/2016,2153069,818.7,West Mercia Energy,201706,Schools,Premises-Related Expenditure,Energy Costs
20/09/2016,2153070,647.29,West Mercia Energy,201706,Schools,Premises-Related Expenditure,Energy Costs
20/09/2016,2153072,529.13,West Mercia Energy,201706,Schools,Premises-Related Expenditure,Energy Costs
20/09/2016,2150601,"1,383.07",West Mercia Energy,201706,Schools,Supplies & Services,"Printing, Stationery & General Office Expenses"
07/09/2016,3833475,505.62,West Mercia Supplies (The Consortium),201706,Schools,Supplies & Services,
07/09/2016,3836692,600,West Midlands Employers,201706,Resources,Supplies & Services,
21/09/2016,2150712,458.33,Whitecross Hereford Academy,201706,Central Childrens Directorate Costs,Support Services,
21/09/2016,2150812,458.33,Whitecross Hereford Academy,201706,Central Childrens Directorate Costs,Support Services,
21/09/2016,2150915,719.17,Wigmore High School (Academy),201706,Central Childrens Directorate Costs,Support Services,
21/09/2016,2150936,719.17,Wigmore Primary School (Academy),201706,Central Childrens Directorate Costs,Support Services,
22/09/2016,2151091,"115,806.29",Worcestershire Health & Care NHS Trust,201706,Public Health,Third Party Payments,
02/09/2016,2146429,630,Wye Nursery,201706,Education and Commissioning,Transfer Payments,
22/09/2016,2151090,"42,778.00",Wye Valley NHS Trust,201706,Public Health,Third Party Payments,
22/09/2016,2151092,"193,735.00",Wye Valley NHS Trust,201706,Public Health,Third Party Payments,
02/09/2016,2146430,426,Wyeside Day Nursery,201706,Education and Commissioning,Transfer Payments,
,,"2,278,341.37",,,,
